[Event "*** SCC Grand Prix: Titled Tuesday Blitz"]
[Site "Chess.com"]
[Date "2020.06.02"]
[Round "4"]
[White "Gordima"]
[Black "bugsbunny444"]
[Result "1-0"]
[WhiteElo "2765"]
[BlackElo "2524"]
[TimeControl "180+1"]
[EndTime "10:39:57 PDT"]
[Termination "Gordima won on time"]

1. d4 {[%clk 0:03:00.9]} 1... e6 {[%clk 0:02:59.9]} 2. c4 {[%clk 0:03:00.8]}
2... b6 {[%clk 0:03:00.3]} 3. Nc3 {[%clk 0:02:59.1]} 3... Bb7 {[%clk 0:03:00.5]}
4. e3 {[%clk 0:02:53.6]} 4... f5 {[%clk 0:03:00.3]} 5. Nf3 {[%clk 0:02:52.2]}
5... Nf6 {[%clk 0:03:00.6]} 6. Bd3 {[%clk 0:02:50.7]} 6... Bb4 {[%clk
0:02:58.6]} 7. Bd2 {[%clk 0:02:48.8]} 7... O-O {[%clk 0:02:57.1]} 8. O-O {[%clk
0:02:48.5]} 8... Qe7 {[%clk 0:02:53.6]} 9. Qc2 {[%clk 0:02:40.1]} 9... d6 {[%clk
0:02:45.1]} 10. d5 {[%clk 0:02:20.1]} 10... exd5 {[%clk 0:01:58.8]} 11. Nxd5
{[%clk 0:02:03]} 11... Nxd5 {[%clk 0:01:58.4]} 12. cxd5 {[%clk 0:02:03.1]} 12...
Bxd2 {[%clk 0:01:40.2]} 13. Nxd2 {[%clk 0:02:04]} 13... Bxd5 {[%clk 0:01:28.2]}
14. Bxf5 {[%clk 0:01:54]} 14... g6 {[%clk 0:00:58.1]} 15. Be4 {[%clk 0:01:52.1]}
15... Bxe4 {[%clk 0:00:49.4]} 16. Nxe4 {[%clk 0:01:48.2]} 16... d5 {[%clk
0:00:41]} 17. Nc3 {[%clk 0:01:44.3]} 17... c6 {[%clk 0:00:31.6]} 18. Rad1 {[%clk
0:01:40.5]} 18... Na6 {[%clk 0:00:31.5]} 19. e4 {[%clk 0:01:40.2]} 19... dxe4
{[%clk 0:00:20.3]} 20. Nxe4 {[%clk 0:01:41.1]} 20... Nb4 {[%clk 0:00:04.1]} 21.
Qc4+ {[%clk 0:01:36.6]} 21... Nd5 {[%clk 0:00:04.3]} 22. Qxc6 {[%clk 0:01:23.8]}
22... Qxe4 {[%clk 0:00:04.3]} 23. Rfe1 {[%clk 0:01:18.5]} 23... Qf5 {[%clk
0:00:03.2]} 24. Qxd5+ {[%clk 0:01:17.8]} 24... Qxd5 {[%clk 0:00:03.2]} 25. Rxd5
{[%clk 0:01:18.7]} 25... Rf7 {[%clk 0:00:03.4]} 26. Re2 {[%clk 0:01:05.7]} 26...
Rc8 {[%clk 0:00:03.5]} 27. h4 {[%clk 0:01:05.8]} 27... Rc4 {[%clk 0:00:03.2]}
28. g3 {[%clk 0:01:03.4]} 28... Kg7 {[%clk 0:00:03.4]} 29. h5 {[%clk 0:01:00.8]}
29... gxh5 {[%clk 0:00:02.6]} 30. Rxh5 {[%clk 0:00:59.5]} 30... Rfc7 {[%clk
0:00:03.1]} 31. Kg2 {[%clk 0:00:55.7]} 31... Rc2 {[%clk 0:00:03.5]} 32. Rhe5
{[%clk 0:00:53.2]} 32... Rxe2 {[%clk 0:00:02.3]} 33. Rxe2 {[%clk 0:00:54.1]}
33... Kg6 {[%clk 0:00:02.7]} 34. Rd2 {[%clk 0:00:43.6]} 34... Kf5 {[%clk
0:00:02.9]} 35. Kf3 {[%clk 0:00:41.8]} 35... Ke5 {[%clk 0:00:01.7]} 36. Kg4
{[%clk 0:00:41.9]} 36... Ke4 {[%clk 0:00:01.8]} 37. Re2+ {[%clk 0:00:30.9]}
37... Kd3 {[%clk 0:00:01.8]} 38. Re3+ {[%clk 0:00:31.5]} 38... Kd2 {[%clk
0:00:02]} 39. Rb3 {[%clk 0:00:28.2]} 39... Kc1 {[%clk 0:00:02.2]} 40. f4 {[%clk
0:00:26.6]} 40... Kb1 {[%clk 0:00:02.5]} 41. a3 {[%clk 0:00:21.4]} 41... Ka2
{[%clk 0:00:02.7]} 42. Rb4 {[%clk 0:00:20.6]} 42... Rc6 {[%clk 0:00:01.9]} 43.
f5 {[%clk 0:00:18.7]} 43... a5 {[%clk 0:00:02.1]} 44. Rb5 {[%clk 0:00:18.9]} 1-0

[Event "*** SCC Grand Prix: Titled Tuesday Blitz"]
[Site "Chess.com"]
[Date "2020.06.02"]
[Round "4"]
[White "nitpicker"]
[Black "Gennady_Kozlov"]
[Result "0-1"]
[WhiteElo "2222"]
[BlackElo "2570"]
[TimeControl "180+1"]
[EndTime "10:39:57 PDT"]
[Termination "Gennady_Kozlov won on time"]

1. d4 {[%clk 0:03:00.9]} 1... e6 {[%clk 0:02:45.9]} 2. c4 {[%clk 0:02:59.7]}
2... b6 {[%clk 0:02:45.8]} 3. Nf3 {[%clk 0:02:54.2]} 3... Bb7 {[%clk 0:02:45.7]}
4. a3 {[%clk 0:02:53]} 4... Nf6 {[%clk 0:02:45.2]} 5. Nc3 {[%clk 0:02:51.9]}
5... Be7 {[%clk 0:02:45.7]} 6. d5 {[%clk 0:02:50]} 6... O-O {[%clk 0:02:44.7]}
7. e4 {[%clk 0:02:47.2]} 7... d6 {[%clk 0:02:45.1]} 8. Bd3 {[%clk 0:02:40.3]}
8... a5 {[%clk 0:02:43.5]} 9. O-O {[%clk 0:02:33.7]} 9... Nbd7 {[%clk
0:02:43.8]} 10. b3 {[%clk 0:02:28.1]} 10... Nc5 {[%clk 0:02:32.1]} 11. Bc2
{[%clk 0:02:27.3]} 11... e5 {[%clk 0:02:32.1]} 12. Rb1 {[%clk 0:02:25.5]} 12...
Bc8 {[%clk 0:02:30.4]} 13. Ne1 {[%clk 0:02:19.1]} 13... Re8 {[%clk 0:02:28.1]}
14. b4 {[%clk 0:02:18.8]} 14... axb4 {[%clk 0:02:27.4]} 15. axb4 {[%clk
0:02:19.7]} 15... Ncd7 {[%clk 0:02:27.8]} 16. Nd3 {[%clk 0:02:17]} 16... Nf8
{[%clk 0:02:26.7]} 17. f3 {[%clk 0:02:11.4]} 17... Ng6 {[%clk 0:02:25.6]} 18.
Be3 {[%clk 0:02:06.4]} 18... Nh5 {[%clk 0:02:24.7]} 19. g3 {[%clk 0:01:52.4]}
19... Bh3 {[%clk 0:02:13.6]} 20. Re1 {[%clk 0:01:41.2]} 20... f5 {[%clk
0:02:00.9]} 21. c5 {[%clk 0:01:14.5]} 21... f4 {[%clk 0:01:58.1]} 22. Bf2 {[%clk
0:01:14.5]} 22... bxc5 {[%clk 0:01:52.9]} 23. bxc5 {[%clk 0:01:13.1]} 23... Bg5
{[%clk 0:01:53]} 24. g4 {[%clk 0:01:02.2]} 24... Nf6 {[%clk 0:01:35.4]} 25. cxd6
{[%clk 0:01:00.6]} 25... cxd6 {[%clk 0:01:32.1]} 26. Bb6 {[%clk 0:01:00]} 26...
Qd7 {[%clk 0:01:31.8]} 27. Nf2 {[%clk 0:00:59.9]} 27... Bh4 {[%clk 0:01:31.8]}
28. Nxh3 {[%clk 0:00:57.7]} 28... Bxe1 {[%clk 0:01:32.7]} 29. Qxe1 {[%clk
0:00:57.9]} 29... Nxg4 {[%clk 0:01:32.6]} 30. Ng5 {[%clk 0:00:52.9]} 30... Nf6
{[%clk 0:01:26.8]} 31. Ne6 {[%clk 0:00:52.6]} 31... Rec8 {[%clk 0:01:23.2]} 32.
Rb4 {[%clk 0:00:44.4]} 32... Nf8 {[%clk 0:01:19.9]} 33. Ba4 {[%clk 0:00:43.5]}
33... Qf7 {[%clk 0:01:18.4]} 34. Nc7 {[%clk 0:00:27.4]} 34... Rxc7 {[%clk
0:01:15.9]} 35. Bc6 {[%clk 0:00:21.5]} 35... Rxc6 {[%clk 0:01:06.3]} 36. dxc6
{[%clk 0:00:20.3]} 36... Rc8 {[%clk 0:01:07.2]} 37. c7 {[%clk 0:00:18.1]} 37...
Ne6 {[%clk 0:01:07.1]} 38. Nb5 {[%clk 0:00:17.4]} 38... Qd7 {[%clk 0:01:02.7]}
39. Qd2 {[%clk 0:00:14.1]} 39... Ne8 {[%clk 0:01:01.7]} 40. Qd5 {[%clk
0:00:13.6]} 40... Kf8 {[%clk 0:01:00.1]} 41. Na7 {[%clk 0:00:12.8]} 41... Rxc7
{[%clk 0:01:00.2]} 42. Bxc7 {[%clk 0:00:12.5]} 42... N8xc7 {[%clk 0:01:01.1]}
43. Qc6 {[%clk 0:00:12.3]} 43... Qe7 {[%clk 0:00:54.3]} 44. Rb8+ {[%clk
0:00:09.3]} 44... Kf7 {[%clk 0:00:54.4]} 45. Nc8 {[%clk 0:00:09.6]} 45... Qg5+
{[%clk 0:00:53.7]} 46. Kf1 {[%clk 0:00:09.6]} 46... Qh5 {[%clk 0:00:49.2]} 47.
Nxd6+ {[%clk 0:00:09.4]} 47... Kg6 {[%clk 0:00:49.1]} 48. Rb3 {[%clk 0:00:06.4]}
48... Qxh2 {[%clk 0:00:47.3]} 49. Ne8 {[%clk 0:00:05.4]} 49... Qh1+ {[%clk
0:00:46.3]} 50. Kf2 {[%clk 0:00:03.9]} 50... Qh4+ {[%clk 0:00:45.1]} 51. Kf1
{[%clk 0:00:03.2]} 51... Qh3+ {[%clk 0:00:41.8]} 52. Kf2 {[%clk 0:00:02.3]}
52... Nxe8 {[%clk 0:00:41.7]} 53. Qxe6+ {[%clk 0:00:01.2]} 53... Qxe6 {[%clk
0:00:40.3]} 0-1

[Event "*** SCC Grand Prix: Titled Tuesday Blitz"]
[Site "Chess.com"]
[Date "2020.06.02"]
[Round "4"]
[White "Artem_Sadovsky"]
[Black "Training_Day"]
[Result "1-0"]
[WhiteElo "2520"]
[BlackElo "2325"]
[TimeControl "180+1"]
[EndTime "10:39:58 PDT"]
[Termination "Artem_Sadovsky won on time"]

1. Nf3 {[%clk 0:03:00.9]} 1... d5 {[%clk 0:02:55]} 2. g3 {[%clk 0:03:01.8]} 2...
c5 {[%clk 0:02:48]} 3. Bg2 {[%clk 0:03:02.7]} 3... Nc6 {[%clk 0:02:47.6]} 4. O-O
{[%clk 0:03:03.6]} 4... e6 {[%clk 0:02:43.4]} 5. d3 {[%clk 0:03:01.5]} 5... Nf6
{[%clk 0:02:40.8]} 6. Nbd2 {[%clk 0:03:02.4]} 6... b6 {[%clk 0:02:35.9]} 7. e4
{[%clk 0:03:03.3]} 7... Be7 {[%clk 0:02:33.1]} 8. Re1 {[%clk 0:03:00.4]} 8...
Bb7 {[%clk 0:02:31.2]} 9. c3 {[%clk 0:02:57.1]} 9... O-O {[%clk 0:02:23]} 10. e5
{[%clk 0:02:56.4]} 10... Nd7 {[%clk 0:02:22.5]} 11. d4 {[%clk 0:02:57.3]} 11...
a5 {[%clk 0:02:08.7]} 12. a3 {[%clk 0:02:47.3]} 12... b5 {[%clk 0:02:06.2]} 13.
dxc5 {[%clk 0:02:22]} 13... Nxc5 {[%clk 0:02:01.8]} 14. Bf1 {[%clk 0:02:19.5]}
14... b4 {[%clk 0:01:50.7]} 15. axb4 {[%clk 0:02:14.3]} 15... axb4 {[%clk
0:01:51.6]} 16. Rxa8 {[%clk 0:02:14.7]} 16... Qxa8 {[%clk 0:01:50.5]} 17. Nb3
{[%clk 0:02:13.9]} 17... bxc3 {[%clk 0:01:37.8]} 18. bxc3 {[%clk 0:02:11.2]}
18... Ba6 {[%clk 0:01:18.6]} 19. Nbd4 {[%clk 0:01:41.9]} 19... Bxf1 {[%clk
0:01:16.1]} 20. Kxf1 {[%clk 0:01:42.8]} 20... Ne4 {[%clk 0:01:14.6]} 21. Qd3
{[%clk 0:01:34.6]} 21... Rc8 {[%clk 0:01:09.8]} 22. Be3 {[%clk 0:01:13.2]} 22...
Qa3 {[%clk 0:00:52.4]} 23. Nb5 {[%clk 0:01:07]} 23... Qa6 {[%clk 0:00:47.6]} 24.
c4 {[%clk 0:00:56.8]} 24... Nb4 {[%clk 0:00:41]} 25. Qa3 {[%clk 0:00:39.8]}
25... Qxa3 {[%clk 0:00:10.6]} 26. Nxa3 {[%clk 0:00:40.7]} 26... dxc4 {[%clk
0:00:09.9]} 27. Rc1 {[%clk 0:00:41.2]} 27... c3 {[%clk 0:00:09.2]} 28. Ke2
{[%clk 0:00:33.1]} 28... Na2 {[%clk 0:00:08.6]} 29. Rc2 {[%clk 0:00:33.6]} 29...
Bxa3 {[%clk 0:00:08.1]} 30. Rxa2 {[%clk 0:00:34.2]} 30... c2 {[%clk 0:00:08.5]}
31. Rxa3 {[%clk 0:00:34.5]} 31... Nc3+ {[%clk 0:00:03.2]} 32. Rxc3 {[%clk
0:00:25]} 32... Rxc3 {[%clk 0:00:02]} 33. Bc1 {[%clk 0:00:24.8]} 33... Rc6
{[%clk 0:00:02.3]} 34. Nd4 {[%clk 0:00:23.9]} 34... Rc5 {[%clk 0:00:02.4]} 35.
f4 {[%clk 0:00:21.1]} 35... f6 {[%clk 0:00:01.5]} 36. Nxe6 {[%clk 0:00:14]}
36... Rd5 {[%clk 0:00:01.4]} 37. Bd2 {[%clk 0:00:07.9]} 1-0

[Event "*** SCC Grand Prix: Titled Tuesday Blitz"]
[Site "Chess.com"]
[Date "2020.06.02"]
[Round "4"]
[White "XDPS"]
[Black "AnishGiri"]
[Result "0-1"]
[WhiteElo "2685"]
[BlackElo "2977"]
[TimeControl "180+1"]
[EndTime "10:39:59 PDT"]
[Termination "AnishGiri won on time"]

1. e4 {[%clk 0:02:41.5]} 1... c5 {[%clk 0:02:59.9]} 2. Nf3 {[%clk 0:02:40.1]}
2... e6 {[%clk 0:03:00.3]} 3. d4 {[%clk 0:02:39.1]} 3... cxd4 {[%clk 0:03:01]}
4. Nxd4 {[%clk 0:02:40]} 4... a6 {[%clk 0:03:01.6]} 5. Be2 {[%clk 0:02:39.5]}
5... Nf6 {[%clk 0:03:00]} 6. Nc3 {[%clk 0:02:38.8]} 6... Qc7 {[%clk 0:02:58]} 7.
O-O {[%clk 0:02:38.1]} 7... Nc6 {[%clk 0:02:56.1]} 8. Be3 {[%clk 0:02:20.9]}
8... Be7 {[%clk 0:02:56.4]} 9. f4 {[%clk 0:02:15.6]} 9... d6 {[%clk 0:02:56.5]}
10. a4 {[%clk 0:02:15.1]} 10... O-O {[%clk 0:02:56.6]} 11. Kh1 {[%clk
0:02:15.6]} 11... Nxd4 {[%clk 0:02:52.9]} 12. Bxd4 {[%clk 0:02:14.4]} 12... e5
{[%clk 0:02:51.8]} 13. Be3 {[%clk 0:02:04.6]} 13... exf4 {[%clk 0:02:51.4]} 14.
Rxf4 {[%clk 0:02:01.1]} 14... Be6 {[%clk 0:02:51.2]} 15. Nd5 {[%clk 0:01:57.1]}
15... Bxd5 {[%clk 0:02:44.9]} 16. exd5 {[%clk 0:01:58]} 16... Nd7 {[%clk
0:02:45.2]} 17. Bd3 {[%clk 0:01:39.7]} 17... Ne5 {[%clk 0:02:44.5]} 18. Bd4
{[%clk 0:01:34.8]} 18... g6 {[%clk 0:02:39.8]} 19. a5 {[%clk 0:01:17.3]} 19...
Rac8 {[%clk 0:02:38.5]} 20. c3 {[%clk 0:01:09.6]} 20... f5 {[%clk 0:02:38.7]}
21. Rf1 {[%clk 0:01:02.8]} 21... Bf6 {[%clk 0:02:38.6]} 22. Be2 {[%clk
0:00:58.8]} 22... Rce8 {[%clk 0:02:36.9]} 23. Ra4 {[%clk 0:00:41.2]} 23... Nd7
{[%clk 0:02:36.2]} 24. Rc4 {[%clk 0:00:40.4]} 24... Qxa5 {[%clk 0:02:35.5]} 25.
b4 {[%clk 0:00:36.5]} 25... Qd8 {[%clk 0:02:28.3]} 26. Bxf6 {[%clk 0:00:33.9]}
26... Rxf6 {[%clk 0:02:23.3]} 27. Rd4 {[%clk 0:00:32.5]} 27... Rf7 {[%clk
0:02:16.2]} 28. c4 {[%clk 0:00:31.9]} 28... a5 {[%clk 0:02:15.9]} 29. c5 {[%clk
0:00:27]} 29... dxc5 {[%clk 0:02:08.8]} 30. bxc5 {[%clk 0:00:27.9]} 30... Nxc5
{[%clk 0:02:09]} 31. d6 {[%clk 0:00:27.3]} 31... Rg7 {[%clk 0:01:39.5]} 32. Bc4+
{[%clk 0:00:20]} 32... Kh8 {[%clk 0:01:39.8]} 33. Rd5 {[%clk 0:00:20.5]} 33...
Ne4 {[%clk 0:01:34.6]} 34. Bb5 {[%clk 0:00:15.9]} 34... Nc3 {[%clk 0:01:31.1]}
35. Qd4 {[%clk 0:00:14.3]} 35... Nxb5 {[%clk 0:01:31.6]} 36. Rxb5 {[%clk
0:00:14.4]} 36... Re6 {[%clk 0:01:28.6]} 37. Rxb7 {[%clk 0:00:14.3]} 37... Qf6
{[%clk 0:01:19.9]} 38. Rb8+ {[%clk 0:00:12]} 38... Rg8 {[%clk 0:01:20.1]} 39.
Rxg8+ {[%clk 0:00:10.7]} 39... Kxg8 {[%clk 0:01:21]} 40. Qd5 {[%clk 0:00:11.5]}
40... Kg7 {[%clk 0:01:15]} 41. d7 {[%clk 0:00:11.5]} 41... Rd6 {[%clk
0:01:15.3]} 42. Qb7 {[%clk 0:00:09.3]} 42... Kh6 {[%clk 0:01:10.6]} 43. h3
{[%clk 0:00:04.3]} 43... Qd8 {[%clk 0:01:08.9]} 44. Rf4 {[%clk 0:00:03.8]} 44...
Rxd7 {[%clk 0:01:05.2]} 45. Qf3 {[%clk 0:00:04]} 45... Rd1+ {[%clk 0:00:59.5]}
46. Kh2 {[%clk 0:00:04.4]} 46... Qd6 {[%clk 0:00:57.8]} 47. Qg3 {[%clk
0:00:04.8]} 47... Rd3 {[%clk 0:00:47.5]} 48. Qh4+ {[%clk 0:00:02.8]} 48... Kg7
{[%clk 0:00:47]} 49. Qf2 {[%clk 0:00:03.7]} 49... a4 {[%clk 0:00:44.1]} 50. h4
{[%clk 0:00:03.2]} 50... a3 {[%clk 0:00:43.4]} 51. h5 {[%clk 0:00:02.4]} 51...
a2 {[%clk 0:00:43.6]} 52. h6+ {[%clk 0:00:01.3]} 52... Kxh6 {[%clk 0:00:42.4]}
53. Qh4+ {[%clk 0:00:01.8]} 53... Kg7 {[%clk 0:00:42.9]} 54. g3 {[%clk
0:00:02.7]} 54... a1=Q {[%clk 0:00:41.7]} 0-1

[Event "*** SCC Grand Prix: Titled Tuesday Blitz"]
[Site "Chess.com"]
[Date "2020.06.02"]
[Round "4"]
[White "ahappypawn"]
[Black "WonderChampion"]
[Result "1-0"]
[WhiteElo "2367"]
[BlackElo "1962"]
[TimeControl "180+1"]
[EndTime "10:39:59 PDT"]
[Termination "ahappypawn won on time"]

1. d4 {[%clk 0:03:00.9]} 1... d5 {[%clk 0:02:58.9]} 2. c4 {[%clk 0:03:00.7]}
2... e6 {[%clk 0:02:58.6]} 3. Nc3 {[%clk 0:02:59.5]} 3... c6 {[%clk 0:02:58.3]}
4. e3 {[%clk 0:02:56]} 4... Nf6 {[%clk 0:02:56.8]} 5. Nf3 {[%clk 0:02:55.5]}
5... Bb4 {[%clk 0:02:52.7]} 6. Bd2 {[%clk 0:02:53.1]} 6... Nbd7 {[%clk
0:02:48.3]} 7. Bd3 {[%clk 0:02:42.6]} 7... dxc4 {[%clk 0:02:45.2]} 8. Bxc4
{[%clk 0:02:41]} 8... O-O {[%clk 0:02:45.2]} 9. O-O {[%clk 0:02:36.9]} 9... Bd6
{[%clk 0:02:40.2]} 10. Qc2 {[%clk 0:02:30.9]} 10... e5 {[%clk 0:02:36.4]} 11.
dxe5 {[%clk 0:02:08.6]} 11... Nxe5 {[%clk 0:02:37.3]} 12. Nxe5 {[%clk
0:02:07.9]} 12... Bxe5 {[%clk 0:02:38.2]} 13. f4 {[%clk 0:02:05.2]} 13... Bc7
{[%clk 0:02:37.4]} 14. Bb3 {[%clk 0:01:52]} 14... Qe7 {[%clk 0:02:33.1]} 15. e4
{[%clk 0:01:49.5]} 15... Ng4 {[%clk 0:02:12.6]} 16. h3 {[%clk 0:01:20.5]} 16...
Qc5+ {[%clk 0:01:53.2]} 17. Kh1 {[%clk 0:01:19.6]} 17... Nf6 {[%clk 0:01:42.5]}
18. Rae1 {[%clk 0:01:07.2]} 18... Nh5 {[%clk 0:01:39.4]} 19. Rf3 {[%clk
0:01:01.8]} 19... Be6 {[%clk 0:01:33.1]} 20. Bxe6 {[%clk 0:00:45.7]} 20... fxe6
{[%clk 0:01:30.7]} 21. Ref1 {[%clk 0:00:43.9]} 21... Rf7 {[%clk 0:01:21.9]} 22.
Qb3 {[%clk 0:00:28.8]} 22... Qd6 {[%clk 0:01:09.5]} 23. Be3 {[%clk 0:00:28.3]}
23... Raf8 {[%clk 0:01:03.3]} 24. e5 {[%clk 0:00:27]} 24... Qd7 {[%clk
0:00:57.4]} 25. g4 {[%clk 0:00:26.4]} 25... Bxe5 {[%clk 0:00:50.4]} 26. gxh5
{[%clk 0:00:24.6]} 26... b6 {[%clk 0:00:44.1]} 27. Kg2 {[%clk 0:00:22]} 27...
Bb8 {[%clk 0:00:40.6]} 28. f5 {[%clk 0:00:19]} 28... e5 {[%clk 0:00:32.2]} 29.
Ne4 {[%clk 0:00:18.3]} 29... Kh8 {[%clk 0:00:27.7]} 30. Qe6 {[%clk 0:00:17.1]}
30... c5 {[%clk 0:00:19.4]} 31. Ng5 {[%clk 0:00:12.7]} 31... Re7 {[%clk
0:00:14.8]} 32. Qxd7 {[%clk 0:00:12.1]} 32... Rxd7 {[%clk 0:00:15.4]} 33. f6
{[%clk 0:00:12.6]} 33... gxf6 {[%clk 0:00:09.8]} 34. Rxf6 {[%clk 0:00:13.5]}
34... Rxf6 {[%clk 0:00:09.6]} 35. Rxf6 {[%clk 0:00:13.9]} 35... Kg7 {[%clk
0:00:10]} 36. Rc6 {[%clk 0:00:12]} 36... Rd3 {[%clk 0:00:08.8]} 37. h6+ {[%clk
0:00:11.8]} 37... Kf8 {[%clk 0:00:06.4]} 38. Rc8+ {[%clk 0:00:11.4]} 38... Ke7
{[%clk 0:00:07.3]} 39. Kf3 {[%clk 0:00:11.5]} 39... Bd6 {[%clk 0:00:04]} 40. Ke4
{[%clk 0:00:11.7]} 40... Rd1 {[%clk 0:00:03.1]} 41. Nxh7 {[%clk 0:00:11.7]} 1-0

[Event "*** SCC Grand Prix: Titled Tuesday Blitz"]
[Site "Chess.com"]
[Date "2020.06.02"]
[Round "4"]
[White "Bhagya_2312"]
[Black "Borsuk_Konstantin"]
[Result "0-1"]
[WhiteElo "2154"]
[BlackElo "2564"]
[TimeControl "180+1"]
[EndTime "10:40:00 PDT"]
[Termination "Borsuk_Konstantin won on time"]

1. e4 {[%clk 0:03:00.9]} 1... e6 {[%clk 0:02:58.7]} 2. d4 {[%clk 0:03:00.3]}
2... d5 {[%clk 0:02:59.3]} 3. e5 {[%clk 0:03:00.4]} 3... c5 {[%clk 0:02:58.6]}
4. c3 {[%clk 0:03:00.7]} 4... Nc6 {[%clk 0:02:59]} 5. Nf3 {[%clk 0:03:01]} 5...
Qb6 {[%clk 0:02:59.4]} 6. Be2 {[%clk 0:03:01]} 6... Nh6 {[%clk 0:02:57.9]} 7.
Bxh6 {[%clk 0:03:00.1]} 7... gxh6 {[%clk 0:02:57.8]} 8. Qd2 {[%clk 0:02:59.7]}
8... Bg7 {[%clk 0:02:56]} 9. O-O {[%clk 0:02:59]} 9... O-O {[%clk 0:02:56.1]}
10. Na3 {[%clk 0:02:56.8]} 10... f6 {[%clk 0:02:52.1]} 11. exf6 {[%clk
0:02:50.8]} 11... Rxf6 {[%clk 0:02:51.4]} 12. Nc2 {[%clk 0:02:50.3]} 12... cxd4
{[%clk 0:02:42.3]} 13. cxd4 {[%clk 0:02:49]} 13... Bd7 {[%clk 0:02:41.4]} 14.
Ne3 {[%clk 0:02:47]} 14... Raf8 {[%clk 0:02:25.5]} 15. Ng4 {[%clk 0:02:40.4]}
15... Rf4 {[%clk 0:02:22.2]} 16. Nge5 {[%clk 0:02:14.6]} 16... Nxe5 {[%clk
0:02:04.6]} 17. dxe5 {[%clk 0:02:09.3]} 17... Be8 {[%clk 0:02:02.1]} 18. Rae1
{[%clk 0:01:38.4]} 18... Bh5 {[%clk 0:01:55.2]} 19. Bd1 {[%clk 0:01:36.4]} 19...
Kh8 {[%clk 0:01:49.1]} 20. Re3 {[%clk 0:01:31.2]} 20... Qc7 {[%clk 0:01:33.4]}
21. Nd4 {[%clk 0:01:15.2]} 21... Bxd1 {[%clk 0:01:12.1]} 22. Qxd1 {[%clk
0:01:08]} 22... Qb6 {[%clk 0:01:07.8]} 23. Nf3 {[%clk 0:00:32.4]} 23... a5
{[%clk 0:00:55.8]} 24. b3 {[%clk 0:00:26.5]} 24... Rc8 {[%clk 0:00:46.5]} 25.
Qd2 {[%clk 0:00:22.8]} 25... Qc5 {[%clk 0:00:45.9]} 26. Ree1 {[%clk 0:00:21.1]}
26... Rff8 {[%clk 0:00:42.4]} 27. Nd4 {[%clk 0:00:19.6]} 27... Qb6 {[%clk
0:00:41.5]} 28. Rc1 {[%clk 0:00:16.8]} 28... Bxe5 {[%clk 0:00:38.6]} 29. Nf3
{[%clk 0:00:11.8]} 29... Bg7 {[%clk 0:00:30.4]} 30. Rxc8 {[%clk 0:00:10.2]}
30... Rxc8 {[%clk 0:00:29.8]} 31. Qe2 {[%clk 0:00:07.9]} 31... Qd6 {[%clk
0:00:25.5]} 32. Re1 {[%clk 0:00:07.6]} 32... e5 {[%clk 0:00:25.4]} 33. Rd1
{[%clk 0:00:06.2]} 33... e4 {[%clk 0:00:22.4]} 34. Nd4 {[%clk 0:00:05.4]} 34...
Bxd4 {[%clk 0:00:21.7]} 35. Rxd4 {[%clk 0:00:05.3]} 35... Rc1+ {[%clk
0:00:21.3]} 36. Rd1 {[%clk 0:00:05.2]} 36... Qc5 {[%clk 0:00:20.2]} 37. Kf1
{[%clk 0:00:02.5]} 37... Qc3 {[%clk 0:00:16.6]} 38. g3 {[%clk 0:00:01.2]} 38...
b5 {[%clk 0:00:14.2]} 39. Kg2 {[%clk 0:00:01.4]} 39... Rxd1 {[%clk 0:00:13.1]}
40. Qxd1 {[%clk 0:00:01.4]} 40... Qc6 {[%clk 0:00:12]} 0-1

[Event "*** SCC Grand Prix: Titled Tuesday Blitz"]
[Site "Chess.com"]
[Date "2020.06.02"]
[Round "4"]
[White "warmoatmeal"]
[Black "Boudicca64"]
[Result "1-0"]
[WhiteElo "2220"]
[BlackElo "1981"]
[TimeControl "180+1"]
[EndTime "10:40:00 PDT"]
[Termination "warmoatmeal won on time"]

1. d4 {[%clk 0:03:00.9]} 1... d5 {[%clk 0:02:58.1]} 2. Bf4 {[%clk 0:03:00.1]}
2... Nf6 {[%clk 0:02:56.5]} 3. e3 {[%clk 0:03:00.1]} 3... e6 {[%clk 0:02:55.9]}
4. Nf3 {[%clk 0:03:00.1]} 4... Be7 {[%clk 0:02:56.1]} 5. Nbd2 {[%clk 0:02:58.7]}
5... O-O {[%clk 0:02:56.3]} 6. Bd3 {[%clk 0:02:58.5]} 6... b6 {[%clk 0:02:56.3]}
7. O-O {[%clk 0:02:58.3]} 7... Bb7 {[%clk 0:02:55]} 8. h3 {[%clk 0:02:58.5]}
8... Nbd7 {[%clk 0:02:53.7]} 9. Bg3 {[%clk 0:02:58]} 9... Ne4 {[%clk 0:02:48.8]}
10. Bh2 {[%clk 0:02:55]} 10... c5 {[%clk 0:02:46.7]} 11. c3 {[%clk 0:02:54.6]}
11... f5 {[%clk 0:02:42.4]} 12. Ne5 {[%clk 0:02:53.4]} 12... Bf6 {[%clk
0:02:32.7]} 13. f3 {[%clk 0:02:51.4]} 13... Nxd2 {[%clk 0:02:15.1]} 14. Qxd2
{[%clk 0:02:51]} 14... Bxe5 {[%clk 0:01:45.1]} 15. dxe5 {[%clk 0:02:51.4]} 15...
Qg5 {[%clk 0:01:42.6]} 16. f4 {[%clk 0:02:50.1]} 16... Qg6 {[%clk 0:01:40.4]}
17. Rfe1 {[%clk 0:02:40.5]} 17... Rad8 {[%clk 0:01:31.1]} 18. Bf1 {[%clk
0:02:39.7]} 18... d4 {[%clk 0:01:22.9]} 19. exd4 {[%clk 0:02:37.6]} 19... cxd4
{[%clk 0:01:21.5]} 20. Qxd4 {[%clk 0:02:30.4]} 20... Nc5 {[%clk 0:01:20.3]} 21.
Qf2 {[%clk 0:02:21.6]} 21... Ne4 {[%clk 0:01:18.1]} 22. Qe3 {[%clk 0:02:21.5]}
22... Rd2 {[%clk 0:01:12.4]} 23. Re2 {[%clk 0:02:19.9]} 23... Rfd8 {[%clk
0:01:10.6]} 24. Rae1 {[%clk 0:02:16.2]} 24... R2d3 {[%clk 0:00:58.8]} 25. Qc1
{[%clk 0:02:10.3]} 25... Rxh3 {[%clk 0:00:57.1]} 26. Kh1 {[%clk 0:01:48.4]}
26... Rhd3 {[%clk 0:00:32.3]} 27. Re3 {[%clk 0:01:46.3]} 27... Qh6 {[%clk
0:00:25.5]} 28. Kg1 {[%clk 0:01:35.5]} 28... Qh4 {[%clk 0:00:16.5]} 29. Rxd3
{[%clk 0:01:24.8]} 29... Qf2+ {[%clk 0:00:14.5]} 30. Kh1 {[%clk 0:01:22.5]}
30... Rxd3 {[%clk 0:00:14.2]} 31. Re2 {[%clk 0:00:42]} 31... Qh4 {[%clk
0:00:11.4]} 32. Re3 {[%clk 0:00:42.4]} 32... Nf2+ {[%clk 0:00:09.5]} 33. Kg1
{[%clk 0:00:41]} 33... Rd1 {[%clk 0:00:09]} 34. Qc2 {[%clk 0:00:34.5]} 34... Ng4
{[%clk 0:00:08]} 35. Rh3 {[%clk 0:00:28.1]} 35... Qe1 {[%clk 0:00:06.3]} 36. Rf3
{[%clk 0:00:25.3]} 36... Nxh2 {[%clk 0:00:03.8]} 37. Kxh2 {[%clk 0:00:24.4]}
37... Qh4+ {[%clk 0:00:03.5]} 38. Rh3 {[%clk 0:00:17.8]} 38... Qxf4+ {[%clk
0:00:03.2]} 39. Rg3 {[%clk 0:00:16.7]} 39... Qxf1 {[%clk 0:00:02.6]} 40. Re3
{[%clk 0:00:11]} 40... Qh1+ {[%clk 0:00:02.1]} 41. Kg3 {[%clk 0:00:11]} 41...
Rf1 {[%clk 0:00:02.1]} 42. Re2 {[%clk 0:00:09.8]} 42... f4+ {[%clk 0:00:02]} 43.
Kg4 {[%clk 0:00:09.3]} 1-0